[Event "*** Titled Tuesday Blitz"]
[Site "Chess.com"]
[Date "2019.09.03"]
[Round "7"]
[White "NicoChasin"]
[Black "TomPolgar"]
[Result "0-1"]
[WhiteElo "2472"]
[BlackElo "2373"]
[TimeControl "180+2"]
[EndTime "16:39:13 PDT"]
[Termination "TomPolgar won by checkmate"]

1. e4 {[%clk 0:03:01.9]} 1... c5 {[%clk 0:02:59.8]} 2. Nf3 {[%clk 0:03:01.5]}
2... Nc6 {[%clk 0:03:01.2]} 3. d4 {[%clk 0:02:46]} 3... cxd4 {[%clk 0:03:03.1]}
4. Nxd4 {[%clk 0:02:45.4]} 4... g6 {[%clk 0:03:03.6]} 5. Nxc6 {[%clk 0:02:25.5]}
5... bxc6 {[%clk 0:03:03.5]} 6. Nc3 {[%clk 0:02:25.7]} 6... Bg7 {[%clk
0:02:59.9]} 7. Bc4 {[%clk 0:02:25.2]} 7... d6 {[%clk 0:02:58.4]} 8. O-O {[%clk
0:02:25]} 8... Nf6 {[%clk 0:03:00]} 9. e5 {[%clk 0:02:22.1]} 9... dxe5 {[%clk
0:02:46.7]} 10. Qe2 {[%clk 0:01:39.3]} 10... O-O {[%clk 0:02:20]} 11. Bg5 {[%clk
0:01:35.7]} 11... Nd5 {[%clk 0:02:04.3]} 12. Ne4 {[%clk 0:01:08.1]} 12... h6
{[%clk 0:01:46.6]} 13. Bh4 {[%clk 0:01:06.3]} 13... f5 {[%clk 0:01:35.9]} 14.
Nc3 {[%clk 0:00:44]} 14... g5 {[%clk 0:01:36.7]} 15. Rad1 {[%clk 0:00:26.3]}
15... e6 {[%clk 0:01:25.9]} 16. Bg3 {[%clk 0:00:19.1]} 16... f4 {[%clk
0:01:26.3]} 17. Ne4 {[%clk 0:00:20.4]} 17... fxg3 {[%clk 0:01:20]} 18. hxg3
{[%clk 0:00:22.3]} 18... Qe7 {[%clk 0:01:02.5]} 19. Bb3 {[%clk 0:00:23.1]} 19...
a5 {[%clk 0:01:02.4]} 20. c4 {[%clk 0:00:23.7]} 20... Nf6 {[%clk 0:00:51.6]} 21.
Nd6 {[%clk 0:00:24.4]} 21... Rd8 {[%clk 0:00:41]} 22. c5 {[%clk 0:00:22.5]}
22... Ba6 {[%clk 0:00:41.3]} 23. Qxe5 {[%clk 0:00:21.5]} 23... Nd5 {[%clk
0:00:28.6]} 24. Qe4 {[%clk 0:00:19.6]} 24... Bxf1 {[%clk 0:00:27.5]} 25. Rxf1
{[%clk 0:00:20.3]} 25... Rxd6 {[%clk 0:00:24.3]} 26. cxd6 {[%clk 0:00:20.5]}
26... Qxd6 {[%clk 0:00:26.2]} 27. Bc2 {[%clk 0:00:21.6]} 27... Nf6 {[%clk
0:00:20.3]} 28. Qe2 {[%clk 0:00:21.8]} 28... Re8 {[%clk 0:00:12.4]} 29. Rd1
{[%clk 0:00:22.8]} 29... Qe7 {[%clk 0:00:11.3]} 30. Bb3 {[%clk 0:00:23.8]} 30...
Nd5 {[%clk 0:00:11.1]} 31. Rc1 {[%clk 0:00:24.8]} 31... Qd6 {[%clk 0:00:10.1]}
32. Qe4 {[%clk 0:00:23.6]} 32... Rf8 {[%clk 0:00:07.1]} 33. Bc2 {[%clk
0:00:23.9]} 33... Nf6 {[%clk 0:00:06.5]} 34. Qc4 {[%clk 0:00:25]} 34... Qd5
{[%clk 0:00:05.4]} 35. Qe2 {[%clk 0:00:25.7]} 35... Qd4 {[%clk 0:00:04.3]} 36.
Qxe6+ {[%clk 0:00:25.7]} 36... Kh8 {[%clk 0:00:05.3]} 37. Qe2 {[%clk 0:00:24.5]}
37... Ng4 {[%clk 0:00:03.9]} 38. Rf1 {[%clk 0:00:25.4]} 38... Qxb2 {[%clk
0:00:02.7]} 39. Qd3 {[%clk 0:00:26.3]} 39... Nf6 {[%clk 0:00:02.7]} 40. f4
{[%clk 0:00:27.6]} 40... Qb6+ {[%clk 0:00:03.3]} 41. Kh1 {[%clk 0:00:28.1]}
41... g4 {[%clk 0:00:04.3]} 42. Re1 {[%clk 0:00:28.1]} 42... Qd8 {[%clk
0:00:05.1]} 43. Qf5 {[%clk 0:00:28.8]} 43... Qd2 {[%clk 0:00:05.8]} 44. Rf1
{[%clk 0:00:27.5]} 44... Qd5 {[%clk 0:00:05.9]} 45. Qg6 {[%clk 0:00:28.1]} 45...
Qh5+ {[%clk 0:00:06.7]} 46. Qxh5 {[%clk 0:00:29.3]} 46... Nxh5 {[%clk
0:00:08.6]} 47. Kh2 {[%clk 0:00:31.1]} 47... Rd8 {[%clk 0:00:08.8]} 48. Bf5
{[%clk 0:00:31.2]} 48... Nf6 {[%clk 0:00:09]} 49. Rc1 {[%clk 0:00:32.6]} 49...
Rd6 {[%clk 0:00:08.7]} 50. a4 {[%clk 0:00:29.9]} 50... Kg8 {[%clk 0:00:07.5]}
51. Rc5 {[%clk 0:00:29.6]} 51... Rd5 {[%clk 0:00:07.9]} 52. Be6+ {[%clk
0:00:30.6]} 52... Kf8 {[%clk 0:00:08.5]} 53. Bxd5 {[%clk 0:00:31.7]} 53... Nxd5
{[%clk 0:00:04.2]} 54. Rxa5 {[%clk 0:00:31.9]} 54... Bd4 {[%clk 0:00:03.3]} 55.
Ra8+ {[%clk 0:00:31.9]} 55... Ke7 {[%clk 0:00:04.2]} 56. a5 {[%clk 0:00:33.4]}
56... Nc7 {[%clk 0:00:03.3]} 57. Rg8 {[%clk 0:00:31.7]} 57... h5 {[%clk
0:00:02.6]} 58. Rg5 {[%clk 0:00:32.7]} 58... c5 {[%clk 0:00:02.9]} 59. Rxh5
{[%clk 0:00:34]} 59... c4 {[%clk 0:00:04.1]} 60. Rh7+ {[%clk 0:00:29]} 60... Kd6
{[%clk 0:00:04.9]} 61. a6 {[%clk 0:00:29.7]} 61... Nxa6 {[%clk 0:00:05.1]} 62.
Rh6+ {[%clk 0:00:30.4]} 62... Kd5 {[%clk 0:00:03.4]} 63. Rxa6 {[%clk 0:00:31.6]}
63... c3 {[%clk 0:00:03.4]} 64. Ra2 {[%clk 0:00:30]} 64... Kc4 {[%clk
0:00:03.5]} 65. Ra4+ {[%clk 0:00:19.5]} 65... Kd3 {[%clk 0:00:04.6]} 66. Ra3
{[%clk 0:00:20.4]} 66... Kd2 {[%clk 0:00:04.8]} 67. Ra4 {[%clk 0:00:21.5]} 67...
Be3 {[%clk 0:00:05.1]} 68. f5 {[%clk 0:00:19.9]} 68... c2 {[%clk 0:00:07]} 69.
Rc4 {[%clk 0:00:18.8]} 69... c1=Q {[%clk 0:00:08.9]} 70. Rxc1 {[%clk 0:00:19.1]}
70... Kxc1 {[%clk 0:00:10.8]} 71. f6 {[%clk 0:00:20.6]} 71... Bc5 {[%clk
0:00:11.8]} 72. f7 {[%clk 0:00:21.9]} 72... Kd2 {[%clk 0:00:12.8]} 73. Kh1
{[%clk 0:00:22.6]} 73... Ke2 {[%clk 0:00:13.3]} 74. Kh2 {[%clk 0:00:23.9]} 74...
Kf2 {[%clk 0:00:14]} 75. Kh1 {[%clk 0:00:25.3]} 75... Kxg3 {[%clk 0:00:14]} 76.
f8=Q {[%clk 0:00:25.3]} 76... Bxf8 {[%clk 0:00:15.4]} 77. Kg1 {[%clk 0:00:26.4]}
77... Bh6 {[%clk 0:00:11.8]} 78. Kh1 {[%clk 0:00:28.3]} 78... Kf2 {[%clk
0:00:11.2]} 79. Kh2 {[%clk 0:00:29.3]} 79... Bf4+ {[%clk 0:00:11.5]} 80. Kh1
{[%clk 0:00:28.5]} 80... Be5 {[%clk 0:00:11.9]} 81. g3 {[%clk 0:00:27.2]} 81...
Kxg3 {[%clk 0:00:13.8]} 82. Kg1 {[%clk 0:00:28.8]} 82... Kh3 {[%clk 0:00:14.9]}
83. Kh1 {[%clk 0:00:30.7]} 83... g3 {[%clk 0:00:16.1]} 84. Kg1 {[%clk
0:00:32.6]} 84... Bd4+ {[%clk 0:00:17.2]} 85. Kh1 {[%clk 0:00:34.5]} 85... g2#
{[%clk 0:00:18.6]} 0-1

[Event "*** Titled Tuesday Blitz"]
[Site "Chess.com"]
[Date "2019.09.03"]
[Round "7"]
[White "chessdjw"]
[Black "MartinMatthiesen"]
[Result "1/2-1/2"]
[WhiteElo "2681"]
[BlackElo "2478"]
[TimeControl "180+2"]
[EndTime "16:39:41 PDT"]
[Termination "Game drawn - insufficient material"]

1. d4 {[%clk 0:03:01.9]} 1... Nf6 {[%clk 0:02:59.9]} 2. c4 {[%clk 0:03:02.8]}
2... g6 {[%clk 0:03:00.6]} 3. g3 {[%clk 0:03:04.2]} 3... Bg7 {[%clk 0:03:01.1]}
4. Bg2 {[%clk 0:03:05.8]} 4... O-O {[%clk 0:03:02.3]} 5. Nf3 {[%clk 0:03:06.9]}
5... d6 {[%clk 0:03:02.7]} 6. O-O {[%clk 0:03:07.7]} 6... c5 {[%clk 0:03:03.6]}
7. Nc3 {[%clk 0:03:07.6]} 7... Nc6 {[%clk 0:03:03.7]} 8. d5 {[%clk 0:03:08.5]}
8... Na5 {[%clk 0:03:04.4]} 9. Nd2 {[%clk 0:03:09.5]} 9... a6 {[%clk 0:03:05.1]}
10. Rb1 {[%clk 0:03:09]} 10... Rb8 {[%clk 0:02:44.6]} 11. b3 {[%clk 0:03:09.6]}
11... b5 {[%clk 0:02:43.5]} 12. Qc2 {[%clk 0:03:10]} 12... Bf5 {[%clk
0:02:40.6]} 13. e4 {[%clk 0:03:09.2]} 13... Bd7 {[%clk 0:02:41.1]} 14. h3 {[%clk
0:03:09.7]} 14... e5 {[%clk 0:02:40.6]} 15. Kh2 {[%clk 0:02:57.7]} 15... Nh5
{[%clk 0:02:38.7]} 16. Bf3 {[%clk 0:02:41.9]} 16... Qc8 {[%clk 0:02:33.1]} 17.
h4 {[%clk 0:02:26.2]} 17... Nf6 {[%clk 0:02:20.8]} 18. Nd1 {[%clk 0:02:21.2]}
18... Ng4+ {[%clk 0:02:20.7]} 19. Kg2 {[%clk 0:02:19.5]} 19... f5 {[%clk
0:02:20.1]} 20. Bxg4 {[%clk 0:02:14.2]} 20... fxg4 {[%clk 0:02:21]} 21. Ne3
{[%clk 0:02:08.8]} 21... Bh6 {[%clk 0:02:01.9]} 22. Bb2 {[%clk 0:02:05.4]} 22...
Qc7 {[%clk 0:01:37]} 23. Qc3 {[%clk 0:02:05.2]} 23... b4 {[%clk 0:01:21.9]} 24.
Qd3 {[%clk 0:02:05.7]} 24... Nb7 {[%clk 0:01:22.4]} 25. f3 {[%clk 0:01:53.8]}
25... gxf3+ {[%clk 0:01:19.8]} 26. Nxf3 {[%clk 0:01:55.7]} 26... Rf6 {[%clk
0:01:09.4]} 27. Ng5 {[%clk 0:01:53.8]} 27... Rbf8 {[%clk 0:01:06.9]} 28. Qe2
{[%clk 0:01:52.9]} 28... Qd8 {[%clk 0:00:59.6]} 29. Rxf6 {[%clk 0:01:19.9]}
29... Qxf6 {[%clk 0:00:52.4]} 30. Rf1 {[%clk 0:01:19.2]} 30... Qe7 {[%clk
0:00:53.1]} 31. Rxf8+ {[%clk 0:01:10.3]} 31... Qxf8 {[%clk 0:00:48.2]} 32. Ng4
{[%clk 0:01:09.7]} 32... Bg7 {[%clk 0:00:44.5]} 33. Bc1 {[%clk 0:00:28.7]} 33...
Nd8 {[%clk 0:00:43.3]} 34. Nh3 {[%clk 0:00:18.7]} 34... Nf7 {[%clk 0:00:36.7]}
35. Nhf2 {[%clk 0:00:18.9]} 35... h5 {[%clk 0:00:31]} 36. Nh2 {[%clk 0:00:18.5]}
36... Qe7 {[%clk 0:00:31.7]} 37. Nf3 {[%clk 0:00:18.5]} 37... Nh6 {[%clk
0:00:28.5]} 38. Ng5 {[%clk 0:00:17.4]} 38... Ng4 {[%clk 0:00:28]} 39. Nxg4
{[%clk 0:00:18.5]} 39... Bxg4 {[%clk 0:00:28.6]} 40. Qf1 {[%clk 0:00:19.6]}
40... a5 {[%clk 0:00:26.8]} 41. Be3 {[%clk 0:00:19]} 41... Bf6 {[%clk
0:00:25.3]} 42. Nh3 {[%clk 0:00:19.6]} 42... Kg7 {[%clk 0:00:19.6]} 43. Nf2
{[%clk 0:00:20.2]} 43... Bc8 {[%clk 0:00:18.5]} 44. Qc1 {[%clk 0:00:21.1]} 44...
Kh7 {[%clk 0:00:16.2]} 45. Bg5 {[%clk 0:00:21.8]} 45... Qf7 {[%clk 0:00:16]} 46.
Qe3 {[%clk 0:00:20.7]} 46... Bg7 {[%clk 0:00:15.7]} 47. Nd3 {[%clk 0:00:21]}
47... Qd7 {[%clk 0:00:14.7]} 48. Nf2 {[%clk 0:00:20.9]} 48... Qf7 {[%clk
0:00:15.7]} 49. Bd8 {[%clk 0:00:21.7]} 49... Bh6 {[%clk 0:00:15.5]} 50. Qe2
{[%clk 0:00:21.4]} 50... Qd7 {[%clk 0:00:14.7]} 51. Bxa5 {[%clk 0:00:20.6]}
51... Qf7 {[%clk 0:00:12.4]} 52. Bd8 {[%clk 0:00:20.5]} 52... Qf8 {[%clk
0:00:11.7]} 53. Bg5 {[%clk 0:00:21.1]} 53... Bxg5 {[%clk 0:00:12.4]} 54. hxg5
{[%clk 0:00:23]} 54... Qe7 {[%clk 0:00:13.3]} 55. Qd2 {[%clk 0:00:23.3]} 55...
Qa7 {[%clk 0:00:13.4]} 56. Qb2 {[%clk 0:00:18.7]} 56... Qd7 {[%clk 0:00:12.9]}
57. a3 {[%clk 0:00:18.2]} 57... bxa3 {[%clk 0:00:13.4]} 58. Qxa3 {[%clk
0:00:20.1]} 58... Qe7 {[%clk 0:00:14.3]} 59. b4 {[%clk 0:00:18.6]} 59... cxb4
{[%clk 0:00:13.9]} 60. Qxb4 {[%clk 0:00:20.5]} 60... Qxg5 {[%clk 0:00:15.1]} 61.
Qxd6 {[%clk 0:00:21.2]} 61... Bg4 {[%clk 0:00:15.3]} 62. Qc7+ {[%clk 0:00:15.9]}
62... Kh6 {[%clk 0:00:15.8]} 63. Qb8 {[%clk 0:00:17]} 63... Kg7 {[%clk
0:00:14.2]} 64. c5 {[%clk 0:00:18]} 64... Be2 {[%clk 0:00:14.9]} 65. c6 {[%clk
0:00:17.7]} 65... h4 {[%clk 0:00:16.1]} 66. Qa7+ {[%clk 0:00:15.2]} 66... Kh6
{[%clk 0:00:16.5]} 67. Qa3 {[%clk 0:00:16.1]} 67... Bb5 {[%clk 0:00:08.9]} 68.
Qc3 {[%clk 0:00:15]} 68... Qd8 {[%clk 0:00:03.8]} 69. Ng4+ {[%clk 0:00:14.4]}
69... Kg5 {[%clk 0:00:04.2]} 70. Qxe5+ {[%clk 0:00:10]} 70... Kxg4 {[%clk
0:00:04.8]} 71. Qf4+ {[%clk 0:00:11.5]} 71... Kh5 {[%clk 0:00:05.7]} 72. Qxh4+
{[%clk 0:00:13.4]} 72... Qxh4 {[%clk 0:00:05.8]} 73. gxh4 {[%clk 0:00:15.3]}
73... Kxh4 {[%clk 0:00:03.4]} 74. e5 {[%clk 0:00:17.2]} 74... Kg5 {[%clk
0:00:04]} 75. e6 {[%clk 0:00:18.3]} 75... Kf6 {[%clk 0:00:05.1]} 76. c7 {[%clk
0:00:18.3]} 76... Ba6 {[%clk 0:00:05.5]} 77. Kf3 {[%clk 0:00:19.4]} 77... Ke7
{[%clk 0:00:06]} 78. Kf4 {[%clk 0:00:20.3]} 78... Kd6 {[%clk 0:00:06.2]} 79. Kg5
{[%clk 0:00:20.8]} 79... Kxc7 {[%clk 0:00:07.4]} 80. Kxg6 {[%clk 0:00:19.4]}
80... Kd6 {[%clk 0:00:08.3]} 81. Kf7 {[%clk 0:00:20.3]} 81... Kxd5 {[%clk
0:00:09]} 82. e7 {[%clk 0:00:21.5]} 82... Bb5 {[%clk 0:00:10.3]} 83. e8=Q {[%clk
0:00:22.6]} 83... Bxe8+ {[%clk 0:00:11.2]} 1/2-1/2

[Event "*** Titled Tuesday Blitz"]
[Site "Chess.com"]
[Date "2019.09.03"]
[Round "8"]
[White "FontVella8"]
[Black "SelfishShellfish"]
[Result "0-1"]
[WhiteElo "2474"]
[BlackElo "2218"]
[TimeControl "180+2"]
[EndTime "16:45:34 PDT"]
[Termination "SelfishShellfish won by resignation"]

1. Nf3 {[%clk 0:03:01.9]} 1... d5 {[%clk 0:02:59.9]} 2. g3 {[%clk 0:03:03.8]}
2... Nf6 {[%clk 0:03:00.1]} 3. Bg2 {[%clk 0:03:05.7]} 3... c6 {[%clk 0:03:00.7]}
4. O-O {[%clk 0:03:07]} 4... Bf5 {[%clk 0:03:02.1]} 5. d3 {[%clk 0:03:07.7]}
5... h6 {[%clk 0:03:03.1]} 6. Nbd2 {[%clk 0:03:09.5]} 6... e6 {[%clk 0:03:04]}
7. Re1 {[%clk 0:03:11]} 7... Be7 {[%clk 0:03:03.1]} 8. c3 {[%clk 0:03:12.4]}
8... O-O {[%clk 0:03:03.7]} 9. Qc2 {[%clk 0:03:14.3]} 9... Bh7 {[%clk
0:03:03.8]} 10. e4 {[%clk 0:03:15.8]} 10... a5 {[%clk 0:03:01.4]} 11. a4 {[%clk
0:03:15.6]} 11... Na6 {[%clk 0:03:01.6]} 12. Nf1 {[%clk 0:03:15.1]} 12... Nc5
{[%clk 0:03:00.4]} 13. N3d2 {[%clk 0:03:12.2]} 13... Qb6 {[%clk 0:02:50.1]} 14.
Rb1 {[%clk 0:03:12.5]} 14... Qa6 {[%clk 0:02:51.2]} 15. Re3 {[%clk 0:03:12.3]}
15... Ng4 {[%clk 0:02:49.8]} 16. Rf3 {[%clk 0:03:13]} 16... Ne5 {[%clk
0:02:50.5]} 17. d4 {[%clk 0:03:11.8]} 17... Nxf3+ {[%clk 0:02:51.1]} 0-1

[Event "*** Titled Tuesday Blitz"]
[Site "Chess.com"]
[Date "2019.09.03"]
[Round "8"]
[White "r31415"]
[Black "Svet99"]
[Result "1-0"]
[WhiteElo "2369"]
[BlackElo "2156"]
[TimeControl "180+2"]
[EndTime "16:46:58 PDT"]
[Termination "r31415 won by resignation"]

1. e4 {[%clk 0:03:01.9]} 1... c6 {[%clk 0:03:00.2]} 2. d4 {[%clk 0:02:58.1]}
2... d5 {[%clk 0:03:00.7]} 3. e5 {[%clk 0:02:57.5]} 3... Bf5 {[%clk 0:03:01.2]}
4. Nf3 {[%clk 0:02:58.9]} 4... e6 {[%clk 0:03:01.9]} 5. Be2 {[%clk 0:03:00.3]}
5... Nd7 {[%clk 0:03:01.8]} 6. c3 {[%clk 0:02:59.9]} 6... Ne7 {[%clk 0:03:02.7]}
7. O-O {[%clk 0:02:58.5]} 7... c5 {[%clk 0:03:03.4]} 8. Be3 {[%clk 0:02:57.2]}
8... Nc6 {[%clk 0:03:04]} 9. Nbd2 {[%clk 0:02:55.8]} 9... Qb6 {[%clk 0:03:02.6]}
10. Qc1 {[%clk 0:02:44.4]} 10... Rc8 {[%clk 0:03:00]} 11. Nb3 {[%clk 0:02:32.5]}
11... Be7 {[%clk 0:02:55.2]} 12. dxc5 {[%clk 0:02:18]} 12... Nxc5 {[%clk
0:02:55.6]} 13. Nbd4 {[%clk 0:02:19.5]} 13... Nxd4 {[%clk 0:02:53.1]} 14. cxd4
{[%clk 0:02:17.5]} 14... O-O {[%clk 0:02:47.1]} 15. dxc5 {[%clk 0:02:17.7]}
15... Bxc5 {[%clk 0:02:47.9]} 16. Bxc5 {[%clk 0:02:17.2]} 16... Rxc5 {[%clk
0:02:48.6]} 17. Qe3 {[%clk 0:02:17.9]} 17... Rfc8 {[%clk 0:02:43.6]} 18. Nd4
{[%clk 0:02:17.6]} 18... Bg6 {[%clk 0:02:42.9]} 19. Nb3 {[%clk 0:02:18.6]} 19...
Rc2 {[%clk 0:02:42.2]} 20. Qxb6 {[%clk 0:02:19.1]} 20... axb6 {[%clk 0:02:43]}
21. Rac1 {[%clk 0:02:20.5]} 21... Rxc1 {[%clk 0:02:42.2]} 22. Rxc1 {[%clk
0:02:21.4]} 22... Rxc1+ {[%clk 0:02:43.2]} 1-0

[Event "*** Titled Tuesday Blitz"]
[Site "Chess.com"]
[Date "2019.09.03"]
[Round "8"]
[White "Kildepiotr"]
[Black "chessdjw"]
[Result "1-0"]
[WhiteElo "2534"]
[BlackElo "2669"]
[TimeControl "180+2"]
[EndTime "16:47:48 PDT"]
[Termination "Kildepiotr won by resignation"]

1. Nf3 {[%clk 0:03:00.8]} 1... g6 {[%clk 0:03:00.1]} 2. g3 {[%clk 0:03:01.4]}
2... Bg7 {[%clk 0:03:02]} 3. d4 {[%clk 0:03:02.4]} 3... f5 {[%clk 0:03:02.7]} 4.
Bg2 {[%clk 0:03:02.9]} 4... Nf6 {[%clk 0:03:03.8]} 5. O-O {[%clk 0:03:04.4]}
5... O-O {[%clk 0:03:04.9]} 6. Nbd2 {[%clk 0:03:05.2]} 6... d6 {[%clk
0:03:05.9]} 7. c3 {[%clk 0:03:05.5]} 7... c6 {[%clk 0:03:01.5]} 8. Qc2 {[%clk
0:03:04]} 8... Qc7 {[%clk 0:02:59]} 9. e4 {[%clk 0:03:03.7]} 9... e5 {[%clk
0:02:38.6]} 10. dxe5 {[%clk 0:02:59.1]} 10... dxe5 {[%clk 0:02:40.5]} 11. Re1
{[%clk 0:02:59.8]} 11... Kh8 {[%clk 0:02:35.6]} 12. b4 {[%clk 0:02:45.6]} 12...
fxe4 {[%clk 0:02:10.6]} 13. Nxe4 {[%clk 0:02:45.5]} 13... Nxe4 {[%clk
0:02:10.9]} 14. Qxe4 {[%clk 0:02:44.2]} 14... Bf5 {[%clk 0:02:11.5]} 15. Qh4
{[%clk 0:02:44.7]} 15... Nd7 {[%clk 0:02:11.6]} 16. Bh6 {[%clk 0:02:36.2]} 16...
Bf6 {[%clk 0:02:03]} 17. Ng5 {[%clk 0:02:32]} 17... Rfe8 {[%clk 0:01:52.1]} 18.
Bg7+ {[%clk 0:02:25.9]} 1-0

[Event "*** Titled Tuesday Blitz"]
[Site "Chess.com"]
[Date "2019.09.03"]
[Round "8"]
[White "LastHeroJr"]
[Black "plumalka"]
[Result "0-1"]
[WhiteElo "2501"]
[BlackElo "2291"]
[TimeControl "180+2"]
[EndTime "16:48:04 PDT"]
[Termination "plumalka won by resignation"]

1. e4 {[%clk 0:03:01.1]} 1... c5 {[%clk 0:03:00.2]} 2. Nf3 {[%clk 0:03:02.4]}
2... d6 {[%clk 0:03:01.3]} 3. d4 {[%clk 0:03:03.6]} 3... cxd4 {[%clk 0:03:03]}
4. Nxd4 {[%clk 0:03:05.2]} 4... Nf6 {[%clk 0:03:04.1]} 5. Nc3 {[%clk 0:03:06.8]}
5... Bd7 {[%clk 0:03:05.5]} 6. Bg5 {[%clk 0:03:06.3]} 6... e6 {[%clk 0:03:06.3]}
7. Qd2 {[%clk 0:02:51.6]} 7... a6 {[%clk 0:03:04.4]} 8. O-O-O {[%clk 0:02:52.5]}
8... h6 {[%clk 0:03:04.8]} 9. Bh4 {[%clk 0:02:30.1]} 9... Nxe4 {[%clk
0:03:03.6]} 10. Nxe4 {[%clk 0:02:19]} 10... Qxh4 {[%clk 0:03:03.8]} 11. Nf3
{[%clk 0:02:19.9]} 11... Qxe4 {[%clk 0:03:01.3]} 12. Bd3 {[%clk 0:02:17.1]}
12... Qc6 {[%clk 0:02:56.3]} 13. Nd4 {[%clk 0:02:10.6]} 13... Qc7 {[%clk
0:02:57.2]} 14. f4 {[%clk 0:02:03.2]} 14... Nc6 {[%clk 0:02:57.6]} 15. Nf3
{[%clk 0:02:00.5]} 15... O-O-O {[%clk 0:02:58.3]} 16. Kb1 {[%clk 0:01:56.6]}
16... d5 {[%clk 0:02:53.6]} 17. g3 {[%clk 0:01:48.7]} 17... Kb8 {[%clk
0:02:47.8]} 18. Rhe1 {[%clk 0:01:47.1]} 18... Bc5 {[%clk 0:02:46]} 19. Bf1
{[%clk 0:01:45.6]} 19... Rc8 {[%clk 0:02:38.6]} 20. h4 {[%clk 0:01:45.1]} 20...
Rhd8 {[%clk 0:02:38.7]} 21. h5 {[%clk 0:01:45]} 21... Qa5 {[%clk 0:02:37.1]} 22.
c3 {[%clk 0:01:42.2]} 22... d4 {[%clk 0:02:33.3]} 23. cxd4 {[%clk 0:01:38.9]}
23... Bb4 {[%clk 0:02:30]} 0-1

[Event "*** Titled Tuesday Blitz"]
[Site "Chess.com"]
[Date "2019.09.03"]
[Round "8"]
[White "Kumi29"]
[Black "mortngabriel"]
[Result "1-0"]
[WhiteElo "2547"]
[BlackElo "2332"]
[TimeControl "180+2"]
[EndTime "16:48:22 PDT"]
[Termination "Kumi29 won by checkmate"]

1. d4 {[%clk 0:03:01.9]} 1... Nf6 {[%clk 0:02:59.5]} 2. Bg5 {[%clk 0:03:02.9]}
2... Ne4 {[%clk 0:02:56.9]} 3. h4 {[%clk 0:03:03.9]} 3... c5 {[%clk 0:02:41.2]}
4. d5 {[%clk 0:03:04.8]} 4... Qb6 {[%clk 0:02:38.2]} 5. Nd2 {[%clk 0:03:05.8]}
5... Nxd2 {[%clk 0:02:32.5]} 6. Bxd2 {[%clk 0:03:06.2]} 6... Qxb2 {[%clk
0:02:30.7]} 7. Nf3 {[%clk 0:03:07.7]} 7... d6 {[%clk 0:02:30.5]} 8. e4 {[%clk
0:03:08.6]} 8... Bg4 {[%clk 0:02:29.2]} 9. Rb1 {[%clk 0:03:07.8]} 9... Bxf3
{[%clk 0:02:17.6]} 10. gxf3 {[%clk 0:03:08.8]} 10... Qxa2 {[%clk 0:02:02.5]} 11.
Rxb7 {[%clk 0:03:09.8]} 11... a6 {[%clk 0:01:49.5]} 12. f4 {[%clk 0:03:02.9]}
12... Nd7 {[%clk 0:01:41.9]} 13. Rh3 {[%clk 0:02:59.6]} 13... e6 {[%clk
0:01:17.9]} 14. Rhb3 {[%clk 0:02:56]} 14... exd5 {[%clk 0:01:12]} 15. exd5
{[%clk 0:02:55.2]} 15... Be7 {[%clk 0:00:50.1]} 16. Bh3 {[%clk 0:02:41.8]} 16...
O-O-O {[%clk 0:00:40.2]} 17. Rb8+ {[%clk 0:02:41.4]} 17... Kc7 {[%clk
0:00:38.9]} 18. R3b7# {[%clk 0:02:42.6]} 1-0

[Event "*** Titled Tuesday Blitz"]
[Site "Chess.com"]
[Date "2019.09.03"]
[Round "8"]
[White "2165149677570"]
[Black "tonyq11"]
[Result "1-0"]
[WhiteElo "2303"]
[BlackElo "2179"]
[TimeControl "180+2"]
[EndTime "16:48:22 PDT"]
[Termination "2165149677570 won by resignation"]

1. e4 {[%clk 0:03:01.9]} 1... e5 {[%clk 0:03:00.4]} 2. Nf3 {[%clk 0:03:00.9]}
2... Nc6 {[%clk 0:03:01.7]} 3. Bb5 {[%clk 0:02:59.6]} 3... a6 {[%clk 0:03:02.8]}
4. Ba4 {[%clk 0:02:59.8]} 4... Nf6 {[%clk 0:03:04.1]} 5. O-O {[%clk 0:03:00.9]}
5... Be7 {[%clk 0:03:05.5]} 6. Re1 {[%clk 0:03:02.4]} 6... b5 {[%clk 0:03:07]}
7. Bb3 {[%clk 0:03:04.1]} 7... d6 {[%clk 0:03:08.5]} 8. c3 {[%clk 0:03:03.7]}
8... O-O {[%clk 0:03:10.1]} 9. h3 {[%clk 0:03:05.3]} 9... Na5 {[%clk 0:03:11.4]}
10. Bc2 {[%clk 0:03:06.3]} 10... c5 {[%clk 0:03:13.1]} 11. d4 {[%clk 0:03:07.9]}
11... Qc7 {[%clk 0:03:14.8]} 12. d5 {[%clk 0:03:09.5]} 12... Bd7 {[%clk
0:03:14.7]} 13. b3 {[%clk 0:03:10]} 13... c4 {[%clk 0:03:09.4]} 14. b4 {[%clk
0:03:10.6]} 14... Nb7 {[%clk 0:03:10.5]} 15. a4 {[%clk 0:03:09.9]} 15... a5
{[%clk 0:03:08]} 16. axb5 {[%clk 0:03:09.6]} 16... axb4 {[%clk 0:03:06.6]} 17.
Rxa8 {[%clk 0:03:11.5]} 17... Rxa8 {[%clk 0:03:07.2]} 18. cxb4 {[%clk
0:03:13.4]} 18... Bxb5 {[%clk 0:03:08]} 19. Nc3 {[%clk 0:02:59.6]} 19... Bd7
{[%clk 0:03:04.4]} 20. Be3 {[%clk 0:02:59.5]} 20... Bd8 {[%clk 0:03:04]} 21. Qb1
{[%clk 0:02:55.4]} 21... Qb8 {[%clk 0:02:50.1]} 22. Qb2 {[%clk 0:02:50.1]} 22...
Nc5 {[%clk 0:02:40.3]} 23. Nxe5 {[%clk 0:02:50.6]} 23... Na4 {[%clk 0:02:32.6]}
24. Nxa4 {[%clk 0:02:33.2]} 24... Bxa4 {[%clk 0:02:32.5]} 25. Bxa4 {[%clk
0:02:33.4]} 25... dxe5 {[%clk 0:02:22]} 26. Bc6 {[%clk 0:02:34.1]} 26... Ra6
{[%clk 0:02:17.6]} 27. b5 {[%clk 0:02:31.5]} 27... Nxe4 {[%clk 0:02:16.7]} 28.
Qc2 {[%clk 0:02:28.1]} 28... Rxc6 {[%clk 0:02:06.2]} 29. dxc6 {[%clk 0:02:21.2]}
29... Nd6 {[%clk 0:02:07.4]} 30. b6 {[%clk 0:02:22.5]} 30... Bxb6 {[%clk
0:02:08.5]} 31. Rb1 {[%clk 0:02:23.5]} 1-0